fUST/lending_fUST_20250314
["ID","MTS","AMOUNT","RATE_DAILY","PERIOD"]
[356093125,1741894270285,-801.16,0.00014794,2]
[356093126,1741894270296,-647.43,0.00014794,2]
[356093127,1741894270310,-500.0,0.00014794,2]
[356093128,1741894270320,-606.89,0.00014794,2]
[356093129,1741894270329,-500.0,0.00014794,2]
[356093130,1741894270339,-500.0,0.00014794,2]
[356093131,1741894270349,-2366.07,0.00014794,2]
[356093132,1741894270359,-151.0,0.00014794,2]
[356093133,1741894270368,-151.0,0.00014794,2]
[356093134,1741894270376,-501.23,0.00014794,2]
[356093135,1741894270387,-500.0,0.00014794,2]
[356093136,1741894270396,-500.0,0.00014794,2]
[356093137,1741894270406,-500.0,0.00014794,2]
[356093138,1741894270416,-2060.16,0.00014794,2]
[356093139,1741894270426,-1000.61,0.00014794,2]
[356093140,1741894270436,-1243.28,0.00014794,2]
[356093141,1741894270445,-500.0,0.00014794,2]
[356093142,1741894270454,-635.67,0.00014794,2]
[356093143,1741894270464,-1642.03,0.00014794,2]
[356093144,1741894270474,-500.0,0.00014794,2]
[356093145,1741894270483,-1491.71,0.00014794,2]
[356093146,1741894270493,-853.54,0.00014794,2]
[356093147,1741894270502,-500.0,0.00014794,2]
[356093148,1741894270512,-743.31,0.00014794,2]
[356093149,1741894270521,-8475.39,0.00014794,2]
[356093150,1741894270530,-1759.09,0.00014794,2]
[356093151,1741894270540,-1123.76,0.00014794,2]
[356093152,1741894270550,-2198.31,0.00014794,2]
[356093153,1741894270559,-1477.61,0.00014794,2]
[356093154,1741894270569,-500.0,0.00014794,2]
[356093155,1741894270579,-500.0,0.00014794,2]
[356093156,1741894270589,-500.0,0.00014794,2]
[356093157,1741894270598,-732.57,0.00014794,2]
[356093158,1741894270608,-1157.73,0.00014794,2]
[356093159,1741894270617,-500.0,0.00014794,2]
[356093160,1741894270626,-1043.48,0.00014794,2]
[356093161,1741894270636,-425.4722403,0.00014794,2]
[356093162,1741894270645,-500.0,0.00014794,2]
[356093163,1741894270655,-500.0,0.00014794,2]
[356093164,1741894270664,-1616.0,0.00014895,2]
[356093165,1741894270674,-500.0,0.00014895,2]
[356093166,1741894270684,-5420.55634869,0.00014934,2]
[356093167,1741894270694,-657.78,0.00015,2]
[356093168,1741894270704,-1000.0,0.00015,15]
[356093169,1741894270716,-39697.99877737,0.00015,4]
[356093170,1741894270725,-2061.00232155,0.00015,2]
[356093171,1741894270734,-14650.36871489,0.00015,2]
[356093172,1741894270744,-154.0,0.00015,2]
[356093173,1741894270754,-154.0,0.00015,2]
[356093174,1741894270764,-154.0,0.00015,2]
[356093175,1741894270774,-154.0,0.00015,2]
[356093176,1741894270789,-154.0,0.00015,2]
[356093177,1741894270799,-353.0,0.00015,2]
[356093178,1741894270808,-154.0,0.00015,2]
[356093179,1741894270817,-353.0,0.00015,2]
[356093180,1741894270826,-353.0,0.00015,2]
[356093181,1741894270836,-154.0,0.00015,2]
[356093182,1741894270846,-353.0,0.00015,2]
[356093183,1741894270855,-154.0,0.00015,2]
[356093184,1741894270865,-353.0,0.00015,2]
[356093185,1741894270874,-154.0,0.00015,2]
[356093186,1741894270883,-353.0,0.00015,2]
[356093187,1741894270892,-353.0,0.00015,2]
[356093188,1741894270901,-162.49651729,0.00015,2]
[356093189,1741894270911,-353.0,0.00015,2]
[356093190,1741894270920,-353.0,0.00015,2]
[356093191,1741894270930,-353.0,0.00015,2]
[356093192,1741894270939,-353.0,0.00015,2]
[356093193,1741894270948,-341.0,0.00015,2]
[356093194,1741894270957,-316.0,0.00015,2]
[356093195,1741894270967,-316.0,0.00015,2]
[356093196,1741894270976,-316.0,0.00015,2]
[356093197,1741894270985,-316.0,0.00015,2]
[356093198,1741894270995,-316.0,0.00015,2]
[356093199,1741894271004,-316.0,0.00015,2]
[356093200,1741894271013,-316.0,0.00015,2]
[356093201,1741894271024,-316.0,0.00015,2]
[356093202,1741894271035,-316.0,0.00015,2]
[356093203,1741894271045,-316.0,0.00015,2]
[356093204,1741894271055,-316.0,0.00015,2]
[356093205,1741894271064,-316.0,0.00015,2]
[356093206,1741894271073,-316.0,0.00015,2]
[356093207,1741894271083,-316.0,0.00015,2]
[356093208,1741894271093,-316.0,0.00015,2]
[356093209,1741894271103,-316.0,0.00015,2]
[356093210,1741894271113,-316.0,0.00015,2]
[356093211,1741894271251,-316.0,0.00015,2]
[356093212,1741894271262,-316.0,0.00015,2]
[356093213,1741894271271,-316.0,0.00015,2]
[356093214,1741894271282,-316.0,0.00015,2]
[356093215,1741894271292,-316.0,0.00015,2]
[356093216,1741894271302,-316.0,0.00015,2]
[356093217,1741894271316,-324.2874915,0.00015,2]
[356093218,1741894271325,-323.07318676,0.00015,2]
[356093219,1741894271335,-1616.0,0.00015032,2]
[356093220,1741894271348,-500.0,0.00015032,2]
[356093221,1741894271358,-500.0,0.00015065,2]
[356093222,1741894271368,-151.0,0.00015068,2]
[356093223,1741894271377,-151.0,0.00015068,2]
[356093224,1741894271388,-954.95,0.00015068,2]
[356093225,1741894271397,-500.0,0.00015068,2]
[356093226,1741894271407,-587.19,0.00015068,2]
[356093227,1741894271416,-500.0,0.00015068,2]
[356093228,1741894271426,-500.0,0.00015068,2]
[356093229,1741894271435,-500.0,0.00015068,2]
[356093230,1741894271444,-500.0,0.00015068,2]
[356093231,1741894271454,-151.0,0.00015068,2]
[356093232,1741894271464,-793.48,0.00015068,2]
[356093233,1741894271473,-500.0,0.00015068,2]
[356093234,1741894271482,-500.0,0.00015068,2]
[356093235,1741894271491,-500.0,0.00015068,2]
[356093236,1741894271500,-1322.9,0.00015068,2]
[356093237,1741894271510,-410.40218786,0.00015068,2]
[356093238,1741894271519,-846.12,0.00015068,2]
[356093239,1741894271529,-500.0,0.00015068,2]
[356093240,1741894271538,-500.0,0.00015068,2]
[356093241,1741894271547,-563.56,0.00015068,2]
[356093242,1741894271556,-500.0,0.00015068,2]
[356093243,1741894271566,-500.0,0.00015068,2]
[356093244,1741894271575,-500.0,0.00015068,2]
[356093245,1741894271584,-500.0,0.00015068,2]
[356093246,1741894271595,-778.09,0.00015068,2]
[356093247,1741894271604,-500.0,0.00015068,2]
[356093248,1741894271614,-521.01,0.00015068,2]
[356093249,1741894271623,-500.0,0.00015068,2]
[356093250,1741894271632,-500.0,0.00015068,2]
[356093251,1741894271642,-500.0,0.00015068,2]
[356093252,1741894271651,-500.0,0.00015068,2]
[356093253,1741894271660,-506.92952915,0.00015068,2]
[356093254,1741894271670,-500.0,0.00015068,2]
[356093255,1741894271680,-500.0,0.00015068,2]
[356093256,1741894271689,-500.0,0.00015068,2]
[356093257,1741894271698,-500.0,0.00015068,2]
[356093258,1741894271707,-500.0,0.00015068,2]
[356093259,1741894271716,-500.0,0.00015068,2]
[356093260,1741894271726,-945.54,0.00015068,2]
[356093261,1741894271735,-1251.04,0.00015068,2]
[356093262,1741894271745,-500.0,0.00015068,2]
[356093263,1741894271754,-500.0,0.00015068,2]
[356093264,1741894271764,-468.18731605,0.00015068,2]
[356093265,1741894271773,-1614.53,0.00015068,2]
[356093266,1741894271783,-500.0,0.00015068,2]
[356093267,1741894271793,-500.0,0.00015068,2]
[356093268,1741894271803,-500.0,0.00015068,2]
[356093269,1741894271813,-1390.01,0.00015068,2]
[356093270,1741894271822,-746.51,0.00015068,2]
[356093271,1741894271831,-500.0,0.00015068,2]
[356093272,1741894271840,-500.0,0.00015068,2]
[356093273,1741894271851,-500.0,0.00015068,2]
[356093274,1741894271861,-500.0,0.00015068,2]
[356093275,1741894271870,-834.06,0.00015068,2]
[356093276,1741894271880,-718.11,0.00015068,2]
[356093277,1741894271890,-500.0,0.00015068,2]
[356093278,1741894271899,-839.92,0.00015068,2]
[356093279,1741894271908,-500.0,0.00015068,2]
[356093280,1741894271917,-500.0,0.00015068,2]
[356093281,1741894271927,-498.46715545,0.00015068,2]
[356093282,1741894271936,-500.0,0.00015068,2]
[356093283,1741894271946,-500.0,0.00015068,2]
[356093284,1741894271956,-500.0,0.00015068,2]
[356093285,1741894271965,-500.0,0.00015068,2]
[356093286,1741894271974,-500.0,0.00015068,2]
[356093287,1741894271983,-500.0,0.00015068,2]
[356093288,1741894271993,-500.0,0.00015068,2]
[356093289,1741894272002,-1030.56,0.00015068,2]
[356093290,1741894272011,-1760.49,0.00015068,2]
[356093291,1741894272021,-500.0,0.00015068,2]
[356093292,1741894272031,-500.0,0.00015068,2]
[356093293,1741894272041,-500.0,0.00015068,2]
[356093294,1741894272050,-1660.28,0.00015068,2]
[356093295,1741894272060,-631.43805004,0.00015068,2]
[356093296,1741894272069,-802.74,0.00015068,2]
[356093297,1741894272079,-500.0,0.00015068,2]
[356093298,1741894272088,-500.0,0.00015068,2]
[356093299,1741894272097,-583.1,0.00015068,2]
[356093300,1741894272107,-500.0,0.00015068,2]
[356093301,1741894272116,-500.0,0.00015068,2]
[356093302,1741894272126,-500.0,0.00015068,2]
[356093303,1741894272135,-500.0,0.00015068,2]
[356093304,1741894272144,-782.58,0.00015068,2]
[356093305,1741894272154,-1228.1,0.00015068,2]
[356093306,1741894272163,-570.85,0.00015068,2]
[356093307,1741894272174,-500.0,0.00015068,2]
[356093308,1741894272183,-500.0,0.00015068,2]
[356093309,1741894272193,-500.0,0.00015068,2]
[356093310,1741894272203,-500.0,0.00015068,2]
[356093311,1741894272212,-500.0,0.00015068,2]
[356093312,1741894272221,-190.47151006,0.00015068,2]
[356093313,1741894272231,-584.93813728,0.00015068,2]
[356093314,1741894272240,-594.75796657,0.00015068,2]
[356093315,1741894272250,-500.0,0.00015068,2]
[356093316,1741894272260,-1891.38,0.00015068,2]
[356093317,1741894272270,-637.15,0.00015068,2]
[356093318,1741894272279,-520.61776414,0.00015068,2]
[356093319,1741894272288,-500.0,0.00015068,2]
[356093320,1741894272297,-726.33,0.00015068,2]
[356093321,1741894272309,-500.0,0.00015068,2]
[356093322,1741894272319,-500.0,0.00015068,2]
[356093323,1741894272329,-500.0,0.00015068,2]
[356093324,1741894272339,-500.0,0.00015068,2]
[356093325,1741894272349,-551.31,0.00015068,2]
[356093326,1741894272358,-500.0,0.00015068,2]
[356093327,1741894272367,-500.0,0.00015068,2]
[356093328,1741894272377,-500.0,0.00015068,2]
[356093329,1741894272388,-500.0,0.00015068,2]
[356093330,1741894272398,-782.32,0.00015068,2]
[356093331,1741894272408,-893.91,0.00015068,2]
[356093332,1741894272417,-860.11,0.00015068,2]
[356093333,1741894272426,-500.0,0.00015068,2]
[356093334,1741894272435,-606.78452311,0.00015068,2]
[356093335,1741894272444,-500.0,0.00015068,2]
[356093336,1741894272454,-730.06,0.00015068,2]
[356093337,1741894272463,-169.999599,0.00015068,2]
[356093338,1741894272472,-169.999599,0.00015068,2]
[356093339,1741894272481,-169.999599,0.00015068,2]
[356093340,1741894272490,-169.999599,0.00015068,2]
[356093341,1741894272500,-500.0,0.00015068,2]
[356093342,1741894272509,-500.0,0.00015068,2]
[356093343,1741894272518,-500.0,0.00015068,2]
[356093344,1741894272527,-500.0,0.00015068,2]
[356093345,1741894272537,-812.19,0.00015068,2]
[356093346,1741894272546,-500.0,0.00015068,2]
[356093347,1741894272556,-500.0,0.00015068,2]
[356093348,1741894272565,-500.0,0.00015068,2]
[356093349,1741894272574,-500.0,0.00015068,2]
[356093350,1741894272583,-500.0,0.00015068,2]
[356093351,1741894272593,-500.0,0.00015068,2]
[356093352,1741894272603,-500.0,0.00015068,2]
[356093353,1741894272612,-500.0,0.00015068,2]
[356093354,1741894272622,-500.0,0.00015068,2]
[356093355,1741894272631,-500.0,0.00015068,2]
[356093356,1741894272641,-500.0,0.00015068,2]
[356093357,1741894272651,-500.0,0.00015068,2]
[356093358,1741894272662,-500.0,0.00015068,2]
[356093359,1741894272672,-500.0,0.00015068,2]
[356093360,1741894272681,-500.0,0.00015068,2]
[356093361,1741894272690,-500.0,0.00015068,2]
[356093362,1741894272700,-610.4813693,0.00015068,2]
[356093363,1741894272709,-500.0,0.00015068,2]
[356093364,1741894272718,-500.0,0.00015068,2]
[356093365,1741894272728,-525.64,0.00015068,2]
[356093366,1741894272737,-500.0,0.00015068,2]
[356093367,1741894272747,-1091.78,0.00015068,2]
[356093368,1741894272756,-500.0,0.00015068,2]
[356093369,1741894272766,-1064.34,0.00015068,2]
[356093370,1741894272775,-605.13,0.00015068,2]
[356093371,1741894272785,-500.0,0.00015068,2]
[356093372,1741894272794,-500.0,0.00015068,2]
[356093373,1741894272804,-500.0,0.00015068,2]
[356093374,1741894272815,-500.0,0.00015068,2]
[356093375,1741894272824,-500.0,0.00015068,2]
[356093376,1741894272834,-946.51,0.00015068,2]
[356093377,1741894272844,-500.0,0.00015068,2]
[356093378,1741894272853,-634.5747152,0.00015068,2]
[356093379,1741894272862,-500.0,0.00015068,2]
[356093380,1741894272872,-500.0,0.00015068,2]
[356093381,1741894272883,-500.0,0.00015068,2]
[356093382,1741894272893,-315.49925075,0.00015068,2]
[356093383,1741894272903,-500.0,0.00015068,2]
[356093384,1741894272912,-500.0,0.00015068,2]
[356093385,1741894272922,-500.0,0.00015068,2]
[356093386,1741894272931,-500.0,0.00015068,2]
[356093387,1741894272940,-2429.74,0.00015068,2]
[356093388,1741894273081,-500.0,0.00015068,2]
[356093389,1741894273093,-1225.1,0.00015068,2]
[356093390,1741894273103,-500.0,0.00015068,2]
[356093391,1741894273113,-915.6,0.00015068,2]
[356093392,1741894273124,-500.0,0.00015068,2]
[356093393,1741894273135,-500.0,0.00015068,2]
[356093394,1741894273145,-500.0,0.00015068,2]
[356093395,1741894273156,-500.0,0.00015068,2]
[356093396,1741894273166,-500.0,0.00015068,2]
[356093397,1741894273175,-578.05040487,0.00015068,2]
[356093398,1741894273184,-500.0,0.00015068,2]
[356093399,1741894273193,-2385.32,0.00015068,2]
[356093400,1741894273202,-1567.01,0.00015068,2]
[356093401,1741894273212,-799.23,0.00015068,2]
[356093402,1741894273222,-500.0,0.00015068,2]
[356093403,1741894273231,-500.0,0.00015068,2]
[356093404,1741894273240,-500.0,0.00015068,2]
[356093405,1741894273250,-500.0,0.00015068,2]
[356093406,1741894273260,-961.15,0.00015068,2]
[356093407,1741894273270,-2314.3,0.00015068,2]
[356093408,1741894273280,-3367.72,0.00015068,2]
[356093409,1741894273289,-500.0,0.00015068,2]
[356093410,1741894273300,-500.0,0.00015068,2]
[356093411,1741894273314,-500.0,0.00015068,2]
[356093412,1741894273323,-500.0,0.00015068,2]
[356093413,1741894273332,-500.0,0.00015068,2]
[356093414,1741894273343,-3655.05,0.00015068,2]
[356093415,1741894273352,-2628.92,0.00015068,2]
[356093416,1741894273362,-4239.54,0.00015068,2]
[356093417,1741894273372,-855.11,0.00015068,2]
[356093418,1741894273382,-844.26,0.00015068,2]
[356093419,1741894273391,-500.0,0.00015068,2]
[356093420,1741894273402,-500.0,0.00015068,2]
[356093421,1741894273411,-500.0,0.00015068,2]
[356093422,1741894273421,-500.0,0.00015068,2]
[356093423,1741894273431,-500.0,0.00015068,2]
[356093424,1741894273441,-14729.94,0.00015068,2]
[356093425,1741894273452,-1094.41,0.00015068,2]
[356093426,1741894273462,-2019.8,0.00015068,2]
[356093427,1741894273471,-1688.66,0.00015068,2]
[356093428,1741894273482,-500.0,0.00015068,2]
[356093429,1741894273492,-500.0,0.00015068,2]
[356093430,1741894273502,-2887.85,0.00015068,2]
[356093431,1741894273513,-500.0,0.00015068,2]
[356093432,1741894273523,-883.44,0.00015068,2]
[356093433,1741894273534,-5717.07,0.00015068,2]
[356093434,1741894273545,-500.0,0.00015068,2]
[356093435,1741894273555,-500.0,0.00015068,2]
[356093436,1741894273564,-500.0,0.00015068,2]
[356093437,1741894273574,-500.0,0.00015068,2]
[356093438,1741894273584,-867.4,0.00015068,2]
[356093439,1741894273596,-1631.9,0.00015068,2]
[356093440,1741894273606,-693.74,0.00015068,2]
[356093441,1741894273615,-500.0,0.00015068,2]
[356093442,1741894273626,-500.0,0.00015068,2]
[356093443,1741894273636,-500.0,0.00015068,2]
[356093444,1741894273646,-500.0,0.00015068,2]
[356093445,1741894273656,-500.0,0.00015068,2]
[356093446,1741894273666,-538.45,0.00015068,2]
[356093447,1741894273677,-500.0,0.00015068,2]
[356093448,1741894273687,-500.0,0.00015068,2]
[356093449,1741894273697,-500.0,0.00015068,2]
[356093450,1741894273708,-500.0,0.00015068,2]
[356093451,1741894273719,-1291.61,0.00015068,2]
[356093452,1741894273729,-1020.5,0.00015068,2]
[356093453,1741894273738,-500.0,0.00015068,2]
[356093454,1741894273749,-500.0,0.00015068,2]
[356093455,1741894273760,-500.0,0.00015068,2]
[356093456,1741894273771,-500.0,0.00015068,2]
[356093457,1741894273781,-500.0,0.00015068,2]
[356093458,1741894273792,-564.97369218,0.00015068,2]
[356093459,1741894273802,-500.0,0.00015068,2]
[356093460,1741894273812,-500.0,0.00015068,4]
[356093461,1741894273822,-500.0,0.00015068,2]
[356093462,1741894273833,-1085.26,0.00015068,2]
[356093463,1741894273846,-500.0,0.00015068,2]
[356093464,1741894273855,-500.0,0.00015068,2]
[356093465,1741894273865,-500.0,0.00015068,2]
[356093466,1741894273874,-500.0,0.00015068,2]
[356093467,1741894273883,-500.0,0.00015068,2]
[356093468,1741894273893,-500.0,0.00015068,2]
[356093469,1741894273903,-829.71,0.00015068,2]
[356093470,1741894273917,-3663.51,0.00015068,2]
[356093471,1741894273936,-500.0,0.00015068,2]
[356093472,1741894273953,-500.0,0.00015068,2]
[356093473,1741894273973,-766.23,0.00015068,2]
[356093474,1741894273994,-560.51,0.00015068,2]
[356093475,1741894274012,-500.0,0.00015068,2]
[356093476,1741894274031,-1253.74,0.00015068,2]
[356093477,1741894274048,-1603.92,0.00015068,2]
[356093478,1741894274064,-5038.82,0.00015068,2]
[356093479,1741894274084,-500.0,0.00015068,2]
[356093480,1741894274112,-3218.17,0.00015068,2]
[356093481,1741894274124,-500.0,0.00015068,2]
[356093482,1741894274143,-500.0,0.00015068,2]
[356093483,1741894274159,-500.0,0.00015068,2]
[356093484,1741894274176,-500.0,0.00015068,2]
[356093485,1741894274192,-1491.96,0.00015068,2]
[356093486,1741894274209,-500.0,0.00015068,2]
[356093487,1741894274226,-2264.46,0.00015068,2]
[356093488,1741894274242,-1269.71,0.00015068,2]
[356093489,1741894274259,-500.0,0.00015068,2]
[356093490,1741894274278,-500.0,0.00015068,2]
[356093491,1741894274294,-500.0,0.00015068,2]
[356093492,1741894274313,-1760.7,0.00015068,2]
[356093493,1741894274329,-500.0,0.00015068,2]
[356093494,1741894274347,-2664.11,0.00015068,2]
[356093495,1741894274363,-500.0,0.00015068,2]
[356093496,1741894274379,-638.54246042,0.00015068,2]
[356093497,1741894274395,-500.0,0.00015068,2]
[356093498,1741894274412,-500.0,0.00015068,2]
[356093499,1741894274429,-200.330747,0.00015068,2]
[356093500,1741894274446,-500.0,0.00015068,2]
[356093501,1741894274461,-980.82,0.00015068,2]
[356093502,1741894274478,-2678.96,0.00015068,2]
[356093503,1741894274495,-200.330747,0.00015068,2]
[356093504,1741894274511,-3489.38,0.00015068,2]
[356093505,1741894274526,-535.53,0.00015068,2]
[356093506,1741894274542,-500.0,0.00015068,2]
[356093507,1741894274558,-2545.77,0.00015068,2]
[356093508,1741894274573,-5671.57,0.00015068,2]
[356093509,1741894274589,-500.0,0.00015068,2]
[356093510,1741894274606,-500.0,0.00015068,2]
[356093511,1741894274622,-500.0,0.00015068,2]
[356093512,1741894274639,-500.0,0.00015068,2]
[356093513,1741894274656,-500.0,0.00015068,2]
[356093514,1741894274672,-500.0,0.00015068,2]
[356093515,1741894274688,-1625.38,0.00015068,2]
[356093516,1741894274704,-661.91,0.00015068,2]
[356093517,1741894274720,-500.0,0.00015068,2]
[356093518,1741894274736,-500.0,0.00015068,2]
[356093519,1741894274753,-1103.31,0.00015068,2]
[356093520,1741894274770,-500.0,0.00015068,2]
[356093521,1741894274787,-500.0,0.00015068,2]
[356093522,1741894274805,-209027.12,0.00015068,2]
[356093523,1741894274822,-555.43067993,0.00015068,2]
[356093524,1741894274837,-500.0,0.00015068,2]
[356093525,1741894274856,-500.0,0.00015068,2]
[356093526,1741894274873,-500.0,0.00015068,2]
[356093527,1741894274889,-1687.29,0.00015068,2]
[356093528,1741894274909,-1217.41,0.00015068,2]
[356093529,1741894274925,-500.0,0.00015068,2]
[356093530,1741894274944,-732.04,0.00015068,2]
[356093531,1741894274961,-500.0,0.00015068,2]
[356093532,1741894274978,-13853.85,0.00015068,2]
[356093533,1741894274995,-500.0,0.00015068,2]
[356093534,1741894275011,-1965.87,0.00015068,2]
[356093535,1741894275028,-19868.93,0.00015068,2]
[356093536,1741894275044,-4290.07,0.00015068,2]
[356093537,1741894275061,-500.0,0.00015068,2]
[356093538,1741894275078,-500.0,0.00015068,2]
[356093539,1741894275095,-641.75,0.00015068,2]
[356093540,1741894275112,-3029.39,0.00015068,2]
[356093541,1741894275129,-500.0,0.00015068,2]
[356093542,1741894275146,-2172.87,0.00015068,2]
[356093543,1741894275161,-500.0,0.00015068,2]
[356093544,1741894275179,-500.0,0.00015068,2]
[356093545,1741894275198,-500.0,0.00015068,2]
[356093546,1741894275217,-9096.59,0.00015068,5]
[356093547,1741894275238,-500.0,0.00015068,2]
[356093548,1741894275257,-500.0,0.00015068,2]
[356093549,1741894275278,-500.0,0.00015068,2]
[356093550,1741894275495,-500.0,0.00015068,2]
[356093551,1741894275509,-500.0,0.00015068,2]
[356093552,1741894275519,-500.0,0.00015068,2]
[356093553,1741894275529,-1889.44,0.00015068,2]
[356093554,1741894275539,-500.0,0.00015068,2]
[356093555,1741894275549,-500.0,0.00015068,2]
[356093556,1741894275559,-3244.72,0.00015068,2]
[356093557,1741894275569,-500.0,0.00015068,2]
[356093558,1741894275580,-500.0,0.00015068,2]
[356093559,1741894275591,-514.8,0.00015068,2]
[356093560,1741894275602,-500.0,0.00015068,2]
[356093561,1741894275612,-500.0,0.00015068,2]
[356093562,1741894275623,-516.59,0.00015068,2]
[356093563,1741894275632,-500.0,0.00015068,2]
[356093564,1741894275643,-1053.85,0.00015068,2]
[356093565,1741894275654,-500.0,0.00015068,2]
[356093566,1741894275665,-500.0,0.00015068,2]
[356093567,1741894275675,-2522.71,0.00015068,2]
[356093568,1741894275685,-500.0,0.00015068,2]
[356093569,1741894275695,-500.0,0.00015068,2]
[356093570,1741894275706,-2188.06,0.00015068,2]
[356093571,1741894275717,-9777.91,0.00015068,2]
[356093572,1741894275727,-8393.77,0.00015068,2]
[356093573,1741894275737,-500.0,0.00015068,2]
[356093574,1741894275748,-500.0,0.00015068,2]
[356093575,1741894275759,-500.0,0.00015068,2]
[356093576,1741894275770,-500.0,0.00015068,2]
[356093577,1741894275781,-500.0,0.00015068,2]
[356093578,1741894275791,-500.0,0.00015068,2]
[356093579,1741894275802,-1528.57,0.00015068,2]
[356093580,1741894275812,-500.0,0.00015068,2]
[356093581,1741894275822,-500.0,0.00015068,2]
[356093582,1741894275833,-3229.46,0.00015068,2]
[356093583,1741894275844,-500.0,0.00015068,2]
[356093584,1741894275854,-500.0,0.00015068,2]
[356093585,1741894275865,-4560.46,0.00015068,2]
[356093586,1741894275875,-371.66932506,0.00015068,2]
[356093587,1741894275886,-991.05,0.00015068,2]
[356093588,1741894275897,-500.0,0.00015068,2]
[356093589,1741894275906,-565.76553262,0.00015068,2]
[356093590,1741894275916,-500.0,0.00015068,2]
[356093591,1741894275927,-500.0,0.00015068,2]
[356093592,1741894275937,-500.0,0.00015068,2]
[356093593,1741894275948,-500.0,0.00015068,2]
[356093594,1741894275960,-668.0,0.00015068,2]
[356093595,1741894275970,-1094.29,0.00015068,2]
[356093596,1741894275981,-500.0,0.00015068,2]
[356093597,1741894275991,-500.0,0.00015068,2]
[356093598,1741894276001,-500.0,0.00015068,2]
[356093599,1741894276011,-500.0,0.00015068,2]
[356093600,1741894276022,-500.0,0.00015068,2]
[356093601,1741894276032,-1101.83,0.00015068,2]
[356093602,1741894276044,-1356.48,0.00015068,2]
[356093603,1741894276055,-6281.11,0.00015068,2]
[356093604,1741894276065,-2180.55,0.00015068,2]
[356093605,1741894276076,-500.0,0.00015068,2]
[356093606,1741894276086,-500.0,0.00015068,2]
[356093607,1741894276097,-500.0,0.00015068,2]
[356093608,1741894276107,-1225.77,0.00015068,2]
[356093609,1741894276118,-3824.86,0.00015068,2]
[356093610,1741894276128,-500.0,0.00015068,2]
[356093611,1741894276139,-500.0,0.00015068,2]
[356093612,1741894276150,-500.0,0.00015068,2]
[356093613,1741894276160,-551.49281262,0.00015068,2]
[356093614,1741894276171,-500.0,0.00015068,2]
[356093615,1741894276181,-500.0,0.00015068,2]
[356093616,1741894276191,-500.0,0.00015068,2]
[356093617,1741894276202,-532.30599148,0.00015068,2]
[356093618,1741894276212,-536.70835015,0.00015068,2]
[356093619,1741894276223,-610.74,0.00015068,2]
[356093620,1741894276233,-903.73,0.00015068,2]
[356093621,1741894276244,-500.0,0.00015068,2]
[356093622,1741894276255,-3624.01,0.00015068,2]
[356093623,1741894276265,-500.0,0.00015068,2]
[356093624,1741894276275,-500.0,0.00015068,2]